[Event "Live Chess"]
[Site "Chess.com"]
[Date "2020.06.02"]
[Round "?"]
[White "GOGIEFF"]
[Black "VincentKeymer"]
[Result "1/2-1/2"]
[ECO "D35"]
[WhiteElo "2961"]
[BlackElo "2787"]
[TimeControl "180+1"]
[EndTime "10:59:37 PDT"]
[Termination "Game drawn by repetition"]

1. d4 {[%clk 0:03:00.9]} 1... Nf6 {[%clk 0:02:59.8]} 2. c4 {[%clk 0:02:59.6]}
2... e6 {[%clk 0:03:00.1]} 3. Nc3 {[%clk 0:03:00.2]} 3... d5 {[%clk 0:03:00]} 4.
cxd5 {[%clk 0:02:59.6]} 4... Nxd5 {[%clk 0:03:00.9]} 5. e4 {[%clk 0:02:59.7]}
5... Nxc3 {[%clk 0:03:01.3]} 6. bxc3 {[%clk 0:02:59.9]} 6... c5 {[%clk
0:03:02.2]} 7. a3 {[%clk 0:02:56.5]} 7... g6 {[%clk 0:03:01.7]} 8. Nf3 {[%clk
0:02:55.3]} 8... Bg7 {[%clk 0:03:01.8]} 9. Be2 {[%clk 0:02:55]} 9... Nc6 {[%clk
0:02:59.1]} 10. Be3 {[%clk 0:02:54.2]} 10... O-O {[%clk 0:02:59.1]} 11. O-O
{[%clk 0:02:53.4]} 11... cxd4 {[%clk 0:02:59.4]} 12. cxd4 {[%clk 0:02:52.3]}
12... b6 {[%clk 0:02:59.9]} 13. h4 {[%clk 0:02:40.5]} 13... Bb7 {[%clk
0:02:59.8]} 14. h5 {[%clk 0:02:40.1]} 14... gxh5 {[%clk 0:03:00.4]} 15. Ra2
{[%clk 0:02:19.8]} 15... Ne7 {[%clk 0:02:46.7]} 16. Qb1 {[%clk 0:02:09.1]} 16...
Rc8 {[%clk 0:02:41.3]} 17. Rd1 {[%clk 0:02:06.6]} 17... f5 {[%clk 0:02:28.2]}
18. Ng5 {[%clk 0:01:53.8]} 18... Bxe4 {[%clk 0:02:16.4]} 19. Nxe4 {[%clk
0:01:46.5]} 19... fxe4 {[%clk 0:02:17.3]} 20. Qxe4 {[%clk 0:01:42.1]} 20... Qd5
{[%clk 0:02:13.1]} 21. Qb1 {[%clk 0:01:30]} 21... Ng6 {[%clk 0:02:09.4]} 22. Bd3
{[%clk 0:01:15.7]} 22... Rc3 {[%clk 0:01:51.4]} 23. Rb2 {[%clk 0:01:14.4]} 23...
Rfc8 {[%clk 0:01:31.4]} 24. Rb5 {[%clk 0:01:11.5]} 24... Qd7 {[%clk 0:01:19.6]}
25. Rxh5 {[%clk 0:01:08.5]} 25... Qf7 {[%clk 0:01:17.3]} 26. Be4 {[%clk
0:01:06.7]} 26... Rxa3 {[%clk 0:00:54.4]} 27. d5 {[%clk 0:01:03.9]} 27... Ra1
{[%clk 0:00:45.6]} 28. dxe6 {[%clk 0:00:58.4]} 28... Qc7 {[%clk 0:00:34.7]} 29.
Qb3 {[%clk 0:00:49.6]} 29... Qc4 {[%clk 0:00:33.3]} 30. Bd5 {[%clk 0:00:34.8]}
30... Qxb3 {[%clk 0:00:27.1]} 31. Bxb3 {[%clk 0:00:35.7]} 31... Rxd1+ {[%clk
0:00:22.5]} 32. Bxd1 {[%clk 0:00:36.6]} 32... Rc3 {[%clk 0:00:19.6]} 33. Rd5
{[%clk 0:00:33]} 33... Bf6 {[%clk 0:00:19.8]} 34. Bh5 {[%clk 0:00:25.7]} 34...
Nf8 {[%clk 0:00:18.1]} 35. Bf7+ {[%clk 0:00:22]} 35... Kg7 {[%clk 0:00:16.8]}
36. g4 {[%clk 0:00:22.5]} 36... h6 {[%clk 0:00:14.9]} 37. Rh5 {[%clk 0:00:22.4]}
37... Bg5 {[%clk 0:00:11.4]} 38. Bd4+ {[%clk 0:00:21.3]} 38... Bf6 {[%clk
0:00:10.3]} 39. Bxc3 {[%clk 0:00:20.7]} 39... Bxc3 {[%clk 0:00:11.2]} 40. Rf5
{[%clk 0:00:20.4]} 40... Bf6 {[%clk 0:00:11.2]} 41. Kg2 {[%clk 0:00:20.7]} 41...
Be7 {[%clk 0:00:08.9]} 42. f4 {[%clk 0:00:19.3]} 42... a5 {[%clk 0:00:06.9]} 43.
Rb5 {[%clk 0:00:19.1]} 43... Bc5 {[%clk 0:00:07.2]} 44. f5 {[%clk 0:00:14.6]}
44... Kf6 {[%clk 0:00:06.2]} 45. Be8 {[%clk 0:00:13.8]} 45... a4 {[%clk
0:00:05.3]} 46. Rxc5 {[%clk 0:00:14.2]} 46... bxc5 {[%clk 0:00:05.1]} 47. Bxa4
{[%clk 0:00:14.7]} 47... Nh7 {[%clk 0:00:04.5]} 48. Kf3 {[%clk 0:00:14.8]} 48...
Ke7 {[%clk 0:00:03.5]} 49. Kf4 {[%clk 0:00:15.1]} 49... Nf6 {[%clk 0:00:01.6]}
50. Bb3 {[%clk 0:00:15.1]} 50... c4 {[%clk 0:00:02.1]} 51. Bxc4 {[%clk
0:00:14.8]} 51... Kd6 {[%clk 0:00:03]} 52. Ba2 {[%clk 0:00:14.2]} 52... Ke7
{[%clk 0:00:02.9]} 53. g5 {[%clk 0:00:14.6]} 53... hxg5+ {[%clk 0:00:02]} 54.
Kxg5 {[%clk 0:00:15.5]} 54... Ng8 {[%clk 0:00:02.6]} 55. Kg6 {[%clk 0:00:15.7]}
55... Nf6 {[%clk 0:00:03.5]} 56. Bc4 {[%clk 0:00:15.5]} 56... Ne8 {[%clk
0:00:03.3]} 57. Be2 {[%clk 0:00:15.7]} 57... Nf6 {[%clk 0:00:04.2]} 58. Bf3
{[%clk 0:00:15.2]} 58... Ne8 {[%clk 0:00:04.2]} 59. Bc6 {[%clk 0:00:15.1]} 59...
Nf6 {[%clk 0:00:03.4]} 60. Kg5 {[%clk 0:00:15.7]} 60... Nh7+ {[%clk 0:00:03]}
61. Kf4 {[%clk 0:00:16.3]} 61... Nf6 {[%clk 0:00:03.9]} 62. Ke5 {[%clk
0:00:16.7]} 62... Ng4+ {[%clk 0:00:04]} 63. Kd5 {[%clk 0:00:16]} 63... Nf6+
{[%clk 0:00:04.9]} 64. Ke5 {[%clk 0:00:16.4]} 64... Ng4+ {[%clk 0:00:05.1]} 65.
Kf4 {[%clk 0:00:15.3]} 65... Nf6 {[%clk 0:00:06]} 66. Ke5 {[%clk 0:00:15.7]}
1/2-1/2

[Event "Live Chess"]
[Site "Chess.com"]
[Date "2020.06.02"]
[Round "?"]
[White "Sweafty"]
[Black "VincentKeymer"]
[Result "0-1"]
[ECO "A09"]
[WhiteElo "2508"]
[BlackElo "2766"]
[TimeControl "180+1"]
[EndTime "10:18:28 PDT"]
[Termination "VincentKeymer won by resignation"]

1. Nf3 {[%clk 0:03:00.9]} 1... d5 {[%clk 0:02:59.7]} 2. c4 {[%clk 0:03:01.3]}
2... d4 {[%clk 0:02:59.7]} 3. b4 {[%clk 0:03:01.8]} 3... Bg4 {[%clk 0:02:59.5]}
4. Qb3 {[%clk 0:03:01.5]} 4... Nf6 {[%clk 0:02:56.8]} 5. Ne5 {[%clk 0:02:55.7]}
5... Bf5 {[%clk 0:02:48.3]} 6. d3 {[%clk 0:02:51]} 6... Nbd7 {[%clk 0:02:47.3]}
7. Nf3 {[%clk 0:02:48.1]} 7... e5 {[%clk 0:02:45.5]} 8. g3 {[%clk 0:02:48.1]}
8... a5 {[%clk 0:02:45.6]} 9. b5 {[%clk 0:02:42.5]} 9... a4 {[%clk 0:02:30.5]}
10. Qd1 {[%clk 0:02:40.3]} 10... Bc5 {[%clk 0:02:24.7]} 11. Bg2 {[%clk
0:02:39.2]} 11... O-O {[%clk 0:02:24]} 12. O-O {[%clk 0:02:39.5]} 12... Qc8
{[%clk 0:02:05]} 13. Ba3 {[%clk 0:02:36.6]} 13... Re8 {[%clk 0:02:04.5]} 14. Nh4
{[%clk 0:02:27.1]} 14... Be6 {[%clk 0:02:02.1]} 15. Qc1 {[%clk 0:02:22]} 15...
h6 {[%clk 0:01:57.5]} 16. Nd2 {[%clk 0:02:18.3]} 16... Ra7 {[%clk 0:01:45.9]}
17. Nhf3 {[%clk 0:02:12.5]} 17... Bf5 {[%clk 0:01:45]} 18. Ne1 {[%clk
0:01:29.7]} 18... Qd8 {[%clk 0:01:34.7]} 19. Nc2 {[%clk 0:01:28.1]} 19... Qe7
{[%clk 0:01:32.8]} 20. Bxc5 {[%clk 0:01:26.7]} 20... Nxc5 {[%clk 0:01:33.7]} 21.
Nb4 {[%clk 0:01:24]} 21... Qd6 {[%clk 0:01:22.6]} 22. Nd5 {[%clk 0:01:12.9]}
22... Nfd7 {[%clk 0:01:13]} 23. Qb2 {[%clk 0:00:54.6]} 23... Raa8 {[%clk
0:01:05.8]} 24. a3 {[%clk 0:00:46.6]} 24... Rad8 {[%clk 0:00:56.8]} 25. Rab1
{[%clk 0:00:42.1]} 25... Nb6 {[%clk 0:00:48.7]} 26. Qb4 {[%clk 0:00:39.4]} 26...
Nxd5 {[%clk 0:00:43.4]} 27. Bxd5 {[%clk 0:00:39.3]} 27... Re7 {[%clk 0:00:28.5]}
28. Bg2 {[%clk 0:00:38.9]} 28... b6 {[%clk 0:00:26]} 29. Rfe1 {[%clk 0:00:34]}
29... Rde8 {[%clk 0:00:24.8]} 30. Ne4 {[%clk 0:00:27.6]} 30... Bxe4 {[%clk
0:00:24.6]} 31. Bxe4 {[%clk 0:00:27.8]} 31... g6 {[%clk 0:00:22.3]} 32. Bd5
{[%clk 0:00:27.2]} 32... Kg7 {[%clk 0:00:22.3]} 33. Rf1 {[%clk 0:00:26.5]} 33...
f5 {[%clk 0:00:21.9]} 34. Rbd1 {[%clk 0:00:25.9]} 34... Qf6 {[%clk 0:00:21.8]}
35. Bc6 {[%clk 0:00:24.8]} 35... Rd8 {[%clk 0:00:21.6]} 36. Qb2 {[%clk
0:00:25.4]} 36... Rd6 {[%clk 0:00:19.5]} 37. Bg2 {[%clk 0:00:25.3]} 37... e4
{[%clk 0:00:18.7]} 38. dxe4 {[%clk 0:00:23.2]} 38... fxe4 {[%clk 0:00:19.6]} 39.
f3 {[%clk 0:00:20.8]} 39... d3 {[%clk 0:00:15.7]} 40. Qxf6+ {[%clk 0:00:18.8]}
40... Rxf6 {[%clk 0:00:16.6]} 41. exd3 {[%clk 0:00:17]} 41... exd3 {[%clk
0:00:16.9]} 42. Rf2 {[%clk 0:00:16.4]} 42... Rfe6 {[%clk 0:00:16.5]} 43. Rfd2
{[%clk 0:00:14.1]} 43... Re1+ {[%clk 0:00:15.5]} 44. Rxe1 {[%clk 0:00:12.9]}
44... Rxe1+ {[%clk 0:00:16.4]} 45. Kf2 {[%clk 0:00:13.8]} 45... Ra1 {[%clk
0:00:16.5]} 46. f4 {[%clk 0:00:13.6]} 46... Rxa3 {[%clk 0:00:16.5]} 47. Ke3
{[%clk 0:00:12.5]} 47... Rb3 {[%clk 0:00:16.8]} 48. Ra2 {[%clk 0:00:07]} 48...
a3 {[%clk 0:00:16.8]} 49. Bf1 {[%clk 0:00:06.5]} 49... Kf6 {[%clk 0:00:14]} 50.
g4 {[%clk 0:00:06.5]} 50... g5 {[%clk 0:00:13.7]} 51. fxg5+ {[%clk 0:00:06.1]}
51... hxg5 {[%clk 0:00:14.6]} 52. h3 {[%clk 0:00:06.8]} 52... Ke5 {[%clk
0:00:14.9]} 53. Bg2 {[%clk 0:00:04]} 53... Rb2 {[%clk 0:00:13.5]} 54. Rxa3
{[%clk 0:00:04.1]} 54... Rxg2 {[%clk 0:00:13.3]} 55. Ra7 {[%clk 0:00:05]} 55...
d2 {[%clk 0:00:12.5]} 0-1

[Event "Live Chess"]
[Site "Chess.com"]
[Date "2020.06.02"]
[Round "?"]
[White "VincentKeymer"]
[Black "GHANDEEVAM2003"]
[Result "0-1"]
[ECO "A15"]
[WhiteElo "2794"]
[BlackElo "2963"]
[TimeControl "180+1"]
[EndTime "11:20:41 PDT"]
[Termination "GHANDEEVAM2003 won on time"]

1. Nf3 {[%clk 0:03:00.5]} 1... Nf6 {[%clk 0:02:58.8]} 2. c4 {[%clk 0:03:00.1]}
2... e6 {[%clk 0:02:58.6]} 3. Nc3 {[%clk 0:03:00.6]} 3... d5 {[%clk 0:02:58.8]}
4. e3 {[%clk 0:03:01.2]} 4... c6 {[%clk 0:02:54.4]} 5. b3 {[%clk 0:03:01.1]}
5... Bd6 {[%clk 0:02:54.5]} 6. Bb2 {[%clk 0:03:01.4]} 6... O-O {[%clk
0:02:55.1]} 7. h3 {[%clk 0:03:01.9]} 7... a6 {[%clk 0:02:51.1]} 8. g4 {[%clk
0:02:57.3]} 8... b5 {[%clk 0:02:48.8]} 9. d4 {[%clk 0:02:53.5]} 9... Nbd7 {[%clk
0:02:36.4]} 10. Bg2 {[%clk 0:02:36.8]} 10... bxc4 {[%clk 0:02:29]} 11. bxc4
{[%clk 0:02:30]} 11... Rb8 {[%clk 0:02:29.5]} 12. Rb1 {[%clk 0:02:19.9]} 12...
a5 {[%clk 0:02:28.9]} 13. O-O {[%clk 0:02:14.6]} 13... Ba6 {[%clk 0:02:27.3]}
14. Nd2 {[%clk 0:02:11.1]} 14... e5 {[%clk 0:02:19.7]} 15. Re1 {[%clk
0:02:00.3]} 15... exd4 {[%clk 0:02:07.4]} 16. exd4 {[%clk 0:01:58.8]} 16... dxc4
{[%clk 0:02:06.4]} 17. Bxc6 {[%clk 0:01:50.4]} 17... Qc7 {[%clk 0:02:03.6]} 18.
Bg2 {[%clk 0:01:49.4]} 18... Bf4 {[%clk 0:01:49.4]} 19. Nde4 {[%clk 0:01:38.4]}
19... Rfe8 {[%clk 0:01:43.2]} 20. Ba1 {[%clk 0:01:24.4]} 20... h6 {[%clk
0:01:36.4]} 21. d5 {[%clk 0:01:15.7]} 21... Be5 {[%clk 0:01:15.9]} 22. d6 {[%clk
0:01:02.1]} 22... Qa7 {[%clk 0:01:15.4]} 23. Nxf6+ {[%clk 0:00:54.8]} 23... Nxf6
{[%clk 0:01:04.9]} 24. Nd5 {[%clk 0:00:41.2]} 24... Nxd5 {[%clk 0:00:55.2]} 25.
Rxb8 {[%clk 0:00:30.9]} 25... Rxb8 {[%clk 0:00:43.9]} 26. Bxe5 {[%clk
0:00:30.5]} 26... Nb4 {[%clk 0:00:43.8]} 27. a3 {[%clk 0:00:19.6]} 27... Nd3
{[%clk 0:00:43.5]} 28. Re3 {[%clk 0:00:19.7]} 28... Rd8 {[%clk 0:00:36.4]} 29.
Bg3 {[%clk 0:00:19.1]} 29... Qc5 {[%clk 0:00:34.8]} 30. Be4 {[%clk 0:00:18.3]}
30... Qxa3 {[%clk 0:00:32.5]} 31. Qf3 {[%clk 0:00:17.5]} 31... Qa1+ {[%clk
0:00:28]} 32. Kh2 {[%clk 0:00:17.6]} 32... Qf6 {[%clk 0:00:27.7]} 33. Bf5 {[%clk
0:00:10.7]} 33... g6 {[%clk 0:00:21.9]} 34. Be4 {[%clk 0:00:07.8]} 34... Rxd6
{[%clk 0:00:18.2]} 35. Bxd6 {[%clk 0:00:05.9]} 35... Qxd6+ {[%clk 0:00:19.1]}
36. Qg3 {[%clk 0:00:06.3]} 36... Qxg3+ {[%clk 0:00:19.4]} 37. Kxg3 {[%clk
0:00:06.5]} 37... a4 {[%clk 0:00:20]} 38. Bxd3 {[%clk 0:00:05.8]} 38... cxd3
{[%clk 0:00:20.9]} 39. Kf4 {[%clk 0:00:05.1]} 39... a3 {[%clk 0:00:18.8]} 40.
Re1 {[%clk 0:00:05.1]} 40... a2 {[%clk 0:00:13.3]} 41. Ke3 {[%clk 0:00:04]}
41... Kg7 {[%clk 0:00:12.8]} 0-1

[Event "Live Chess"]
[Site "Chess.com"]
[Date "2020.06.02"]
[Round "?"]
[White "mishanick"]
[Black "VincentKeymer"]
[Result "0-1"]
[ECO "D02"]
[WhiteElo "2944"]
[BlackElo "2799"]
[TimeControl "180+1"]
[EndTime "11:08:48 PDT"]
[Termination "VincentKeymer won by resignation"]

1. d4 {[%clk 0:03:00.9]} 1... Nf6 {[%clk 0:02:59.9]} 2. Nf3 {[%clk 0:03:00.9]}
2... d5 {[%clk 0:02:59.1]} 3. c4 {[%clk 0:03:01]} 3... e6 {[%clk 0:02:59.7]} 4.
Nc3 {[%clk 0:03:01.1]} 4... c5 {[%clk 0:02:59.9]} 5. cxd5 {[%clk 0:02:54.7]}
5... Nxd5 {[%clk 0:02:59.4]} 6. e4 {[%clk 0:02:52.1]} 6... Nxc3 {[%clk
0:02:58.8]} 7. bxc3 {[%clk 0:02:53]} 7... cxd4 {[%clk 0:02:59.7]} 8. cxd4 {[%clk
0:02:53.9]} 8... Bb4+ {[%clk 0:03:00]} 9. Bd2 {[%clk 0:02:54]} 9... Bxd2+ {[%clk
0:03:00.6]} 10. Qxd2 {[%clk 0:02:54.9]} 10... O-O {[%clk 0:03:01.2]} 11. Bc4
{[%clk 0:02:51.8]} 11... Nd7 {[%clk 0:03:01.1]} 12. O-O {[%clk 0:02:51.7]} 12...
b6 {[%clk 0:03:01.6]} 13. a4 {[%clk 0:02:49.4]} 13... Bb7 {[%clk 0:03:01.1]} 14.
Rfe1 {[%clk 0:02:48.2]} 14... Nf6 {[%clk 0:02:57.2]} 15. Bd3 {[%clk 0:02:48.4]}
15... h6 {[%clk 0:02:57.5]} 16. a5 {[%clk 0:02:46.9]} 16... bxa5 {[%clk
0:02:57.6]} 17. Rxa5 {[%clk 0:02:47]} 17... Qc7 {[%clk 0:02:55.7]} 18. h3 {[%clk
0:02:42.5]} 18... Rfc8 {[%clk 0:02:51.9]} 19. Rc5 {[%clk 0:02:10.8]} 19... Qd8
{[%clk 0:02:32.2]} 20. Ra5 {[%clk 0:01:46.8]} 20... Qc7 {[%clk 0:02:26.1]} 21.
Rb5 {[%clk 0:01:45.8]} 21... a5 {[%clk 0:02:07.6]} 22. Qb2 {[%clk 0:01:26.2]}
22... Ba6 {[%clk 0:01:53.5]} 23. Rc5 {[%clk 0:01:25.5]} 23... Qd8 {[%clk
0:01:50.5]} 24. Bxa6 {[%clk 0:01:14.2]} 24... Rxa6 {[%clk 0:01:50.4]} 25. Qb5
{[%clk 0:00:48.5]} 25... Raa8 {[%clk 0:01:44.5]} 26. Rxc8 {[%clk 0:00:43.6]}
26... Rxc8 {[%clk 0:01:32.3]} 27. Qa6 {[%clk 0:00:34.7]} 27... Rc2 {[%clk
0:01:08.4]} 28. Qb7 {[%clk 0:00:31]} 28... a4 {[%clk 0:00:58.2]} 29. Ra1 {[%clk
0:00:26.5]} 29... Qc7 {[%clk 0:00:41]} 30. Qxc7 {[%clk 0:00:23.5]} 30... Rxc7
{[%clk 0:00:41.9]} 31. e5 {[%clk 0:00:23.4]} 31... Ne4 {[%clk 0:00:41.7]} 32.
Rxa4 {[%clk 0:00:18.2]} 32... Rc1+ {[%clk 0:00:41.6]} 33. Kh2 {[%clk 0:00:18.7]}
33... Nxf2 {[%clk 0:00:42.2]} 34. Ra2 {[%clk 0:00:18.7]} 34... Nd3 {[%clk
0:00:34.5]} 35. Kg3 {[%clk 0:00:17.6]} 35... Nb4 {[%clk 0:00:33.1]} 36. h4
{[%clk 0:00:14.9]} 36... Nxa2 {[%clk 0:00:32.3]} 0-1

[Event "Live Chess"]
[Site "Chess.com"]
[Date "2020.06.02"]
[Round "?"]
[White "VincentKeymer"]
[Black "FabianoCaruana"]
[Result "1-0"]
[ECO "A41"]
[WhiteElo "2783"]
[BlackElo "3000"]
[TimeControl "180+1"]
[EndTime "10:39:28 PDT"]
[Termination "VincentKeymer won by resignation"]

1. Nf3 {[%clk 0:03:00.1]} 1... d6 {[%clk 0:02:58.3]} 2. d4 {[%clk 0:02:58.9]}
2... Nf6 {[%clk 0:02:58.6]} 3. c4 {[%clk 0:02:59.2]} 3... g6 {[%clk 0:02:59.2]}
4. g3 {[%clk 0:02:59.6]} 4... Bf5 {[%clk 0:02:58.7]} 5. Bg2 {[%clk 0:02:58.5]}
5... c6 {[%clk 0:02:57.9]} 6. O-O {[%clk 0:02:58.4]} 6... Bg7 {[%clk 0:02:58.2]}
7. Nc3 {[%clk 0:02:57.8]} 7... Ne4 {[%clk 0:02:56.4]} 8. Qb3 {[%clk 0:02:53]}
8... Nxc3 {[%clk 0:02:55]} 9. bxc3 {[%clk 0:02:48.8]} 9... Bc8 {[%clk
0:02:48.2]} 10. e4 {[%clk 0:02:48]} 10... O-O {[%clk 0:02:48.3]} 11. Be3 {[%clk
0:02:47.3]} 11... Nd7 {[%clk 0:02:48.1]} 12. a4 {[%clk 0:02:45.7]} 12... b6
{[%clk 0:02:44.8]} 13. a5 {[%clk 0:02:42.3]} 13... Ba6 {[%clk 0:02:40.3]} 14.
Nd2 {[%clk 0:02:40.1]} 14... Qc7 {[%clk 0:02:36.7]} 15. Ra2 {[%clk 0:02:33.8]}
15... b5 {[%clk 0:02:34]} 16. cxb5 {[%clk 0:02:25.7]} 16... Bxb5 {[%clk
0:02:30.9]} 17. Rb1 {[%clk 0:02:16.3]} 17... Rab8 {[%clk 0:02:25.1]} 18. Qa3
{[%clk 0:02:11.8]} 18... Bd3 {[%clk 0:02:05.5]} 19. Rxb8 {[%clk 0:01:56.5]}
19... Rxb8 {[%clk 0:02:06.4]} 20. c4 {[%clk 0:01:57]} 20... Be2 {[%clk
0:02:06.2]} 21. f4 {[%clk 0:01:49.5]} 21... c5 {[%clk 0:02:01.7]} 22. d5 {[%clk
0:01:49.2]} 22... Rb4 {[%clk 0:01:50.2]} 23. Kf2 {[%clk 0:01:44.7]} 23... Bxc4
{[%clk 0:01:47.8]} 24. Rc2 {[%clk 0:01:44.2]} 24... Bd3 {[%clk 0:01:28.9]} 25.
Qxd3 {[%clk 0:01:39.6]} 25... Qxa5 {[%clk 0:01:29]} 26. Nc4 {[%clk 0:01:20.4]}
26... Qb5 {[%clk 0:01:29]} 27. Bf1 {[%clk 0:01:19.9]} 27... a5 {[%clk
0:01:21.8]} 28. e5 {[%clk 0:01:17.6]} 28... Qa6 {[%clk 0:00:31.2]} 29. Qe4
{[%clk 0:00:34.3]} 29... dxe5 {[%clk 0:00:29.4]} 30. fxe5 {[%clk 0:00:34.7]}
30... Nxe5 {[%clk 0:00:26.7]} 31. Bxc5 {[%clk 0:00:26.5]} 31... Rb1 {[%clk
0:00:18.2]} 32. Nd2 {[%clk 0:00:23]} 32... Qf6+ {[%clk 0:00:16]} 33. Kg2 {[%clk
0:00:17.9]} 33... Rd1 {[%clk 0:00:14.7]} 34. Bd4 {[%clk 0:00:17]} 34... a4
{[%clk 0:00:12.1]} 35. Bxe5 {[%clk 0:00:14.8]} 35... Qxe5 {[%clk 0:00:13]} 36.
Rc8+ {[%clk 0:00:14.2]} 1-0

[Event "Live Chess"]
[Site "Chess.com"]
[Date "2020.06.02"]
[Round "?"]
[White "VincentKeymer"]
[Black "JiaHaoxiang"]
[Result "1-0"]
[ECO "A30"]
[WhiteElo "2770"]
[BlackElo "2564"]
[TimeControl "180+1"]
[EndTime "10:25:42 PDT"]
[Termination "VincentKeymer won by resignation"]

1. Nf3 {[%clk 0:03:00.6]} 1... c5 {[%clk 0:02:58.4]} 2. c4 {[%clk 0:03:00.4]}
2... b6 {[%clk 0:02:58.5]} 3. Nc3 {[%clk 0:03:01.1]} 3... Bb7 {[%clk 0:02:58.7]}
4. e4 {[%clk 0:03:00.5]} 4... d6 {[%clk 0:02:58.8]} 5. d4 {[%clk 0:03:00.3]}
5... cxd4 {[%clk 0:02:58.9]} 6. Nxd4 {[%clk 0:03:01.2]} 6... Nf6 {[%clk
0:02:58.4]} 7. f3 {[%clk 0:03:01]} 7... e6 {[%clk 0:02:58.7]} 8. Be3 {[%clk
0:03:00.3]} 8... a6 {[%clk 0:02:58.7]} 9. Be2 {[%clk 0:03:00.5]} 9... Nbd7
{[%clk 0:02:59]} 10. O-O {[%clk 0:03:00.6]} 10... Be7 {[%clk 0:02:59.1]} 11. a4
{[%clk 0:03:01.1]} 11... O-O {[%clk 0:02:57.6]} 12. a5 {[%clk 0:03:01.2]} 12...
bxa5 {[%clk 0:02:46.2]} 13. Nb3 {[%clk 0:03:00.9]} 13... Rb8 {[%clk 0:02:30.7]}
14. Nxa5 {[%clk 0:02:56.9]} 14... Qc7 {[%clk 0:02:27.2]} 15. Ba7 {[%clk
0:02:28.2]} 15... Ra8 {[%clk 0:02:23]} 16. Bd4 {[%clk 0:02:28.2]} 16... Rfb8
{[%clk 0:02:21.1]} 17. b4 {[%clk 0:02:20.3]} 17... Bc8 {[%clk 0:02:11.5]} 18.
Qa4 {[%clk 0:02:15.7]} 18... Nb6 {[%clk 0:02:09.4]} 19. Qc6 {[%clk 0:02:13]}
19... Ra7 {[%clk 0:02:00.5]} 20. c5 {[%clk 0:02:01.7]} 20... dxc5 {[%clk
0:01:56.6]} 21. Qxc7 {[%clk 0:02:01.9]} 21... Rxc7 {[%clk 0:01:56.3]} 22. Be5
{[%clk 0:02:02.4]} 22... Na8 {[%clk 0:01:43.6]} 23. Bxc7 {[%clk 0:02:00.5]}
23... Nxc7 {[%clk 0:01:44.5]} 24. Nc6 {[%clk 0:02:00.6]} 24... cxb4 {[%clk
0:01:42.7]} 25. Nxe7+ {[%clk 0:01:52.6]} 25... Kf8 {[%clk 0:01:40.5]} 26. Nxc8
{[%clk 0:01:53.2]} 26... bxc3 {[%clk 0:01:40.6]} 27. Nd6 {[%clk 0:01:52.6]}
27... Rb2 {[%clk 0:01:39.4]} 28. Bxa6 {[%clk 0:01:52.3]} 28... c2 {[%clk
0:01:32.2]} 29. Bd3 {[%clk 0:01:50.2]} 29... Nh5 {[%clk 0:01:31.3]} 30. Rfc1
{[%clk 0:01:47.5]} 30... Nf4 {[%clk 0:01:31.5]} 31. Rxc2 {[%clk 0:01:47.1]}
31... Nxd3 {[%clk 0:01:31.3]} 32. Rxc7 {[%clk 0:01:47]} 1-0

[Event "Live Chess"]
[Site "Chess.com"]
[Date "2020.06.02"]
[Round "?"]
[White "VincentKeymer"]
[Black "Orest_Vovk"]
[Result "1-0"]
[ECO "A15"]
[WhiteElo "2763"]
[BlackElo "2387"]
[TimeControl "180+1"]
[EndTime "10:06:59 PDT"]
[Termination "VincentKeymer won on time"]

1. Nf3 {[%clk 0:03:00.6]} 1... Nf6 {[%clk 0:02:59.4]} 2. c4 {[%clk 0:03:00.2]}
2... e6 {[%clk 0:02:59]} 3. Nc3 {[%clk 0:03:00.2]} 3... Nc6 {[%clk 0:02:58.9]}
4. d4 {[%clk 0:02:59.4]} 4... Bb4 {[%clk 0:02:58.9]} 5. e3 {[%clk 0:02:55.5]}
5... O-O {[%clk 0:02:56.4]} 6. Bd3 {[%clk 0:02:55.3]} 6... d6 {[%clk 0:02:56.8]}
7. O-O {[%clk 0:02:42.7]} 7... Bxc3 {[%clk 0:02:52.4]} 8. bxc3 {[%clk
0:02:42.3]} 8... e5 {[%clk 0:02:53]} 9. Qc2 {[%clk 0:02:36.2]} 9... Re8 {[%clk
0:02:49.3]} 10. Ng5 {[%clk 0:02:28.9]} 10... h6 {[%clk 0:02:46]} 11. Ne4 {[%clk
0:02:25.1]} 11... Nd7 {[%clk 0:02:28.4]} 12. a4 {[%clk 0:02:18.5]} 12... f5
{[%clk 0:02:22.7]} 13. Nd2 {[%clk 0:02:18]} 13... e4 {[%clk 0:02:22.6]} 14. Be2
{[%clk 0:02:18.3]} 14... a5 {[%clk 0:02:15.5]} 15. Ba3 {[%clk 0:02:09.2]} 15...
Nf6 {[%clk 0:02:09.1]} 16. c5 {[%clk 0:02:07.5]} 16... d5 {[%clk 0:01:59.9]} 17.
c4 {[%clk 0:02:05.4]} 17... Be6 {[%clk 0:01:50.8]} 18. Rab1 {[%clk 0:02:04.5]}
18... Rb8 {[%clk 0:01:02.6]} 19. Rb5 {[%clk 0:02:01.7]} 19... f4 {[%clk
0:00:59.2]} 20. Rfb1 {[%clk 0:01:49.5]} 20... dxc4 {[%clk 0:00:26.3]} 21. Bxc4
{[%clk 0:01:39.5]} 21... Nd5 {[%clk 0:00:25.6]} 22. Rxb7 {[%clk 0:01:01.8]}
22... Rxb7 {[%clk 0:00:24.9]} 23. Rxb7 {[%clk 0:01:01.2]} 23... fxe3 {[%clk
0:00:25.2]} 24. fxe3 {[%clk 0:00:59.9]} 24... Nxe3 {[%clk 0:00:20.8]} 25. Bxe6+
{[%clk 0:00:59.7]} 25... Rxe6 {[%clk 0:00:20.3]} 26. Qb3 {[%clk 0:00:59.6]}
26... Nd5 {[%clk 0:00:19.4]} 27. Qc4 {[%clk 0:00:36.6]} 27... e3 {[%clk
0:00:16.9]} 28. Nf3 {[%clk 0:00:36.6]} 28... e2 {[%clk 0:00:14.3]} 29. Rb1
{[%clk 0:00:36.1]} 29... Qf6 {[%clk 0:00:10.8]} 30. Qxd5 {[%clk 0:00:28.3]}
30... Nxd4 {[%clk 0:00:10.8]} 31. Nxd4 {[%clk 0:00:25]} 31... e1=Q+ {[%clk
0:00:07.7]} 32. Rxe1 {[%clk 0:00:24.3]} 1-0